bitfinex-derivatives/quotes_BTCF0:USTF0_20260119
["timestamp","ask_amount","ask_price","bid_price","bid_amount"]
[1768833349185,0.010769,92906.0,92894.0,0.07183637]
[1768833349496,0.01086139,92910.0,92896.0,0.07183637]
[1768833349698,0.01086139,92910.0,92895.0,0.07183637]
[1768833349882,0.010769,92908.0,92891.0,0.09985876]
[1768833350085,0.02088824,92907.0,92894.0,0.07183637]
[1768833350285,0.010769,92906.0,92889.0,0.00236843]
[1768833350490,0.03165724,92906.0,92890.0,0.18071363]
[1768833351197,0.02057739,92910.0,92892.0,0.010771]
[1768833351398,0.010769,92909.0,92892.0,0.20852248]
[1768833351794,0.010769,92909.0,92892.0,0.19775148]
[1768833352498,0.09692,92908.0,92893.0,0.19775148]
[1768833352896,0.010769,92907.0,92893.0,0.19775148]
[1768833353896,0.09692,92908.0,92893.0,0.19775148]
[1768833354492,0.010769,92907.0,92893.0,0.19775148]
[1768833354893,0.010769,92906.0,92893.0,0.19775148]
[1768833355604,0.09692,92908.0,92893.0,0.19775148]
[1768833355805,0.09692,92908.0,92893.0,0.09985876]
[1768833356006,0.02227824,92906.0,92890.0,0.18071363]
[1768833356205,0.01077,92902.0,92890.0,0.25255]
[1768833356403,0.01077,92902.0,92891.0,0.07183637]
[1768833356699,0.02227824,92906.0,92893.0,0.07183637]
[1768833356894,0.01077,92897.0,92891.0,0.07183637]
[1768833357094,0.01077,92897.0,92889.0,0.00236843]
[1768833357594,0.01077,92895.0,92883.0,0.09085551]
[1768833357789,0.01077,92895.0,92883.0,0.08009404]
[1768833359299,0.01093148,92898.0,92883.0,0.08009404]
[1768833360092,0.01093148,92898.0,92883.0,0.29008923]
[1768833360298,0.01077,92896.0,92883.0,0.29008923]
[1768833360607,0.00016148,92898.0,92883.0,0.29008923]
[1768833360808,0.00016148,92898.0,92883.0,0.17773448]
[1768833361010,0.01077,92895.0,92883.0,0.17773448]
[1768833361398,0.18071363,92900.0,92883.0,0.17773448]
[1768833362403,0.01077,92896.0,92883.0,0.17773448]
[1768833362900,0.01077,92896.0,92883.0,0.29008923]
[1768833363500,0.01077,92896.0,92885.0,0.11235475]
[1768833363810,0.21251866,92910.0,92891.0,0.20999519]
[1768833364201,0.15596437,92908.0,92891.0,0.09764044]
[1768833364402,0.01077,92900.0,92891.0,0.09764044]
[1768833364602,0.010769,92903.0,92891.0,0.09764044]
[1768833364813,0.01077,92901.0,92891.0,0.09764044]
[1768833365709,0.01077,92899.0,92890.0,0.18071363]
[1768833366012,0.17599842,92908.0,92886.0,0.11235475]
[1768833366013,0.02003405,92906.0,92886.0,0.20999519]
[1768833366512,0.02003405,92904.0,92883.0,0.19244879]
[1768833366712,0.18071363,92900.0,92883.0,0.19244879]
[1768833366906,0.010771,92893.0,92883.0,0.19244879]
[1768833367110,0.010771,92891.0,92883.0,0.08009404]
[1768833367910,0.01077,92894.0,92884.0,0.11235475]
[1768833368311,0.01077,92897.0,92884.0,0.11235475]
[1768833368507,0.01077,92897.0,92884.0,0.20999519]
[1768833368713,0.01077,92897.0,92885.0,0.11235475]
[1768833369105,0.18071363,92900.0,92885.0,0.11235475]
[1768833369509,0.010771,92892.0,92885.0,0.11235475]
[1768833369909,0.01077,92899.0,92885.0,0.11235475]
[1768833370206,0.010771,92890.0,92885.0,0.20999519]
[1768833370401,0.010771,92890.0,92886.0,0.09764044]
[1768833370812,0.010771,92893.0,92886.0,0.09764044]
[1768833371011,0.18071363,92900.0,92886.0,0.09764044]
[1768833371309,0.01077,92893.0,92886.0,0.09764044]
[1768833371522,0.010769,92904.0,92886.0,0.20999519]
[1768833371714,0.18071363,92900.0,92886.0,0.20999519]
[1768833372310,0.010771,92892.0,92886.0,0.20999519]
[1768833373410,0.18071363,92900.0,92886.0,0.20999519]
[1768833373611,0.01077,92895.0,92886.0,0.20999519]
[1768833373812,0.010771,92893.0,92886.0,0.09764044]
[1768833375521,0.01077,92895.0,92886.0,0.09764044]
[1768833375820,0.01077,92895.0,92886.0,0.20999519]
[1768833376519,0.01077,92894.0,92886.0,0.20999519]
[1768833376916,0.09692,92903.0,92886.0,0.20999519]
[1768833377115,0.01077,92899.0,92888.0,0.20999519]
[1768833377517,0.107689,92903.0,92892.0,0.11235475]
[1768833377715,0.010769,92903.0,92892.0,0.11235475]
[1768833377917,0.107689,92903.0,92892.0,0.11235475]
[1768833378315,0.10905436,92889.0,92879.0,0.09692]
[1768833378625,0.010772,92884.0,92879.0,0.09692]
[1768833378818,9.995e-05,92883.0,92879.0,0.09692]
[1768833379215,0.010772,92882.0,92880.0,0.09692]
[1768833379415,0.010772,92882.0,92859.0,0.88184]
[1768833379416,9.995e-05,92883.0,92854.0,0.07695688]
[1768833379625,0.10905436,92876.0,92851.0,0.01154088]
[1768833379919,0.010774,92863.0,92849.0,0.00236945]
[1768833380119,0.010774,92862.0,92850.0,0.09692]
[1768833380321,0.010774,92865.0,92851.0,0.20999519]
[1768833380522,0.010773,92868.0,92853.0,0.11235475]
[1768833380727,0.010774,92866.0,92853.0,0.20999519]
[1768833381124,0.010774,92866.0,92854.0,0.11235475]
[1768833381325,0.010775,92856.0,92850.0,0.11235475]
[1768833381530,0.10905436,92866.0,92851.0,0.09696]
[1768833381916,0.010774,92860.0,92849.0,0.00236945]
[1768833382117,0.010774,92863.0,92850.0,0.09696]
[1768833382728,0.010774,92861.0,92850.0,0.09696]
[1768833384131,0.010775,92857.0,92849.0,0.00236945]
[1768833384336,0.010775,92855.0,92850.0,0.09696]
[1768833384519,0.010775,92855.0,92849.0,4.5e-07]
[1768833384725,0.11950452,92854.0,92834.0,0.11894191]
[1768833384923,0.11950452,92853.0,92835.0,0.09696]
[1768833385232,0.010776,92849.0,92835.0,0.09696]
[1768833385433,0.09766539,92850.0,92827.0,0.107738]
[1768833385635,0.0001244,92856.0,92827.0,0.107738]
[1768833385636,0.09766539,92848.0,92827.0,0.107738]
[1768833385823,0.010776,92849.0,92830.0,0.10545473]
[1768833386126,0.010776,92849.0,92833.0,0.11894191]
[1768833386322,0.01093757,92849.0,92833.0,0.11894191]
[1768833386523,0.01093757,92849.0,92832.0,0.09467673]
[1768833387528,0.010776,92847.0,92832.0,0.09467673]
[1768833387724,0.21716991,92847.0,92829.0,0.00236996]
[1768833387924,0.21716991,92847.0,92830.0,0.09696]
[1768833388126,0.010776,92846.0,92830.0,0.21590191]
[1768833388533,0.00016157,92849.0,92830.0,0.22667991]
[1768833388730,0.00016157,92849.0,92831.0,0.11894191]
[1768833389038,0.010776,92848.0,92831.0,0.11894191]
[1768833389241,0.010776,92845.0,92831.0,0.11894191]
[1768833390744,0.010776,92848.0,92831.0,0.11894191]
[1768833390934,0.00016157,92849.0,92831.0,0.11894191]
[1768833390935,0.010776,92846.0,92831.0,0.11894191]
[1768833391154,0.010776,92844.0,92831.0,0.11894191]
[1768833391397,0.00016157,92849.0,92829.0,9.6e-07]
[1768833391398,0.21733148,92849.0,92829.0,9.6e-07]
[1768833391551,0.09766539,92833.0,92829.0,9.6e-07]
[1768833391737,0.11950452,92837.0,92829.0,9.6e-07]
[1768833391738,0.010777,92834.0,92829.0,9.6e-07]
[1768833392433,0.010778,92829.0,92824.0,8e-08]
[1768833392750,0.010778,92829.0,92813.0,0.09696]
[1768833392751,0.09766539,92826.0,92813.0,0.09696]
[1768833393043,0.010778,92829.0,92813.0,0.09696]
[1768833393044,0.010778,92829.0,92814.0,0.11894191]
[1768833393434,0.010778,92827.0,92814.0,0.11894191]
[1768833393633,0.010778,92828.0,92814.0,0.11894191]
[1768833393842,0.010778,92826.0,92813.0,0.09696]
[1768833394236,0.010778,92826.0,92809.0,0.00237047]
[1768833394237,0.21716991,92826.0,92809.0,0.00237047]
[1768833394546,0.09766539,92820.0,92800.0,0.13472291]
[1768833394751,0.010779,92819.0,92801.0,0.09696]
[1768833394936,0.010779,92816.0,92801.0,0.09696]
[1768833395244,0.13028352,92819.0,92801.0,0.09696]
[1768833395744,0.21716991,92804.0,92781.0,0.010783]
[1768833395947,0.21716991,92801.0,92777.0,0.010784]
[1768833396252,0.10844739,92797.0,92774.0,0.11894191]
[1768833396542,0.010782,92794.0,92778.0,0.11894191]
[1768833396847,0.11950452,92793.0,92779.0,4.5e-07]
[1768833397039,0.21716991,92793.0,92779.0,4.5e-07]
[1768833397342,0.01088847,92803.0,92769.0,0.00237149]
[1768833397343,0.21716991,92791.0,92769.0,0.00237149]
[1768833397532,0.010783,92786.0,92769.0,0.00237149]
[1768833397736,0.09766539,92783.0,92768.0,0.04847313]
[1768833397935,0.010783,92785.0,92768.0,0.04847313]
[1768833398844,0.00016166,92786.0,92768.0,0.04847313]
[1768833399044,0.097,92785.0,92770.0,0.11894191]
[1768833399245,0.097,92798.0,92789.0,0.21361864]
[1768833399445,0.097,92801.0,92783.0,0.11894191]
[1768833399643,0.097,92801.0,92787.0,0.010783]
[1768833399843,0.11950452,92811.0,92769.0,0.107785]
[1768833399844,0.097,92802.0,92793.0,0.0980218]
[1768833400044,0.097,92802.0,92770.0,0.10778475]
[1768833400045,0.09052546,92818.0,92794.0,0.21205542]
[1768833400241,0.097,92817.0,92797.0,0.11403362]
[1768833400546,0.097,92816.0,92797.0,0.11419528]
[1768833400737,0.00011608,92815.0,92801.0,0.12481462]
[1768833400942,0.00011608,92815.0,92802.0,0.21205542]
[1768833401141,0.00011608,92815.0,92802.0,0.22283642]
[1768833401543,0.09474612,92816.0,92802.0,0.22283642]
[1768833402044,0.010777,92834.0,92814.0,0.01078]
[1768833402245,0.010776,92842.0,92822.0,0.21205542]
[1768833402443,0.097,92849.0,92829.0,0.21205542]
[1768833402751,0.010776,92845.0,92830.0,0.21205542]
[1768833402954,0.010776,92842.0,92824.0,0.21205542]
[1768833403250,0.00013814,92848.0,92823.0,0.00016166]
[1768833403251,0.11477918,92840.0,92823.0,0.00016166]
[1768833403450,0.11477918,92838.0,92823.0,0.00016166]
[1768833403651,0.09052546,92837.0,92823.0,0.00016166]
[1768833404041,0.010777,92836.0,92823.0,0.00016166]
[1768833405747,0.097,92838.0,92823.0,0.01094066]
[1768833405948,0.097,92844.0,92829.0,0.21205542]
[1768833406649,0.097,92844.0,92829.0,0.50591062]
[1768833407046,0.097,92844.0,92829.0,0.51668862]
[1768833407248,0.097,92844.0,92829.0,0.391877]
[1768833407451,0.010776,92843.0,92829.0,0.29148512]
[1768833407647,0.010776,92843.0,92830.0,0.29148512]
[1768833407838,0.010777,92840.0,92827.0,0.29148512]
[1768833408042,0.010777,92840.0,92826.0,0.29148512]
[1768833408238,0.097,92844.0,92823.0,0.00016166]
[1768833408239,0.010776,92842.0,92823.0,0.00016166]
[1768833408444,0.097,92844.0,92827.0,0.29148512]
[1768833408839,0.097,92844.0,92829.0,0.29148512]
[1768833409063,0.097,92844.0,92827.0,0.29148512]
[1768833409255,0.010776,92843.0,92827.0,0.29148512]
[1768833409441,0.010776,92843.0,92823.0,0.00016166]
[1768833409442,0.010776,92843.0,92829.0,0.29148512]
[1768833409641,0.00840655,92843.0,92827.0,0.29148512]
[1768833409848,0.097,92844.0,92829.0,0.29148512]
[1768833410153,0.097,92844.0,92827.0,0.29148512]
[1768833410354,0.097,92844.0,92828.0,0.29148512]
[1768833410553,0.097,92844.0,92827.0,0.29148512]
[1768833410948,0.097,92844.0,92823.0,0.11419528]
[1768833410949,0.097,92844.0,92829.0,0.29148512]
[1768833411155,0.010776,92843.0,92827.0,0.29148512]
[1768833411355,0.097,92844.0,92827.0,0.29148512]
[1768833411558,0.097,92844.0,92829.0,0.29148512]
[1768833411757,0.097,92844.0,92827.0,0.29148512]
[1768833412055,0.010777,92841.0,92829.0,0.29148512]
[1768833412258,0.010777,92838.0,92827.0,0.29148512]
[1768833412456,0.010777,92838.0,92828.0,0.29148512]
[1768833412653,0.010777,92838.0,92831.0,0.29148512]
[1768833413144,0.010777,92838.0,92835.0,0.29148512]
[1768833413349,0.010777,92838.0,92831.0,0.29148512]
[1768833413760,0.010777,92842.0,92835.0,0.29148512]
[1768833413950,0.010777,92842.0,92828.0,0.29148512]
[1768833414145,0.097,92844.0,92829.0,0.29148512]
[1768833414354,0.010777,92840.0,92828.0,0.29148512]
[1768833414760,0.010777,92840.0,92823.0,0.11419528]
[1768833415062,0.09619462,92843.0,92830.0,0.29148512]
[1768833415259,0.11370118,92840.0,92823.0,0.00016166]
[1768833415453,0.010777,92841.0,92817.0,0.09479107]
[1768833415454,0.2098958,92838.0,92817.0,0.09479107]
[1768833415650,0.2098958,92838.0,92785.0,0.07673679]
[1768833415651,0.09619462,92833.0,92804.0,0.11395522]
[1768833415862,0.09619462,92823.0,92796.0,0.07517163]
[1768833416163,0.09619462,92820.0,92798.0,0.10771625]
[1768833416464,0.01078,92810.0,92793.0,0.12473722]
[1768833416762,0.010779,92816.0,92793.0,0.11395522]
[1768833416963,8.957e-05,92815.0,92799.0,0.010781]
[1768833417151,8.957e-05,92815.0,92793.0,0.11395522]
[1768833417852,8.957e-05,92815.0,92805.0,0.010781]
[1768833418053,8.957e-05,92815.0,92798.0,0.11395522]
[1768833418257,8.957e-05,92815.0,92798.0,0.21126989]
[1768833418459,8.957e-05,92815.0,92805.0,0.010781]
[1768833418658,0.01078,92814.0,92799.0,0.12473622]
[1768833418858,0.01078,92814.0,92799.0,0.010781]
[1768833419059,0.01086957,92815.0,92800.0,0.010781]
[1768833419658,8.957e-05,92815.0,92802.0,0.010781]
[1768833420064,0.01078,92814.0,92797.0,0.010782]
[1768833420267,0.01078,92814.0,92799.0,0.010781]
[1768833420465,8.957e-05,92815.0,92801.0,0.010781]
[1768833421065,8.957e-05,92815.0,92795.0,0.11395522]
[1768833421266,8.957e-05,92815.0,92775.0,0.010784]
[1768833421267,0.09619462,92807.0,92785.0,0.11395522]
[1768833421463,0.09619462,92800.0,92778.0,0.097]
[1768833421662,0.09619462,92800.0,92774.0,0.11395522]
[1768833421663,0.09619462,92796.0,92774.0,0.11395522]
[1768833421966,0.010782,92791.0,92775.0,0.11395522]
[1768833422160,0.00012011,92790.0,92775.0,0.11395522]
[1768833422358,0.00012011,92790.0,92776.0,0.010784]
[1768833422964,0.01090311,92790.0,92775.0,0.11395522]
[1768833423468,0.00012011,92790.0,92776.0,0.010784]
[1768833423666,0.00012011,92790.0,92778.0,0.010784]
[1768833424068,0.00012011,92790.0,92780.0,0.010784]
[1768833424256,0.10697462,92811.0,92784.0,0.09731467]
[1768833424456,0.010781,92799.0,92787.0,0.11395522]
[1768833424666,0.09704,92799.0,92784.0,0.010783]
[1768833424859,0.010782,92798.0,92783.0,0.010783]
[1768833425054,0.09704,92799.0,92781.0,0.12473822]
[1768833425055,0.010782,92797.0,92781.0,0.12473822]
[1768833425261,0.010782,92793.0,92777.0,0.010784]
[1768833425767,0.01088622,92796.0,92779.0,0.010784]
[1768833425973,0.09704,92799.0,92781.0,0.22205289]
[1768833426155,0.09704,92799.0,92782.0,0.11395522]
[1768833426362,0.09704,92799.0,92778.0,0.010784]
[1768833426966,0.09704,92799.0,92775.0,0.21143155]
[1768833426967,0.010782,92792.0,92775.0,0.21143155]
[1768833427470,0.09627089,92798.0,92777.0,0.11395522]
[1768833427668,0.010782,92797.0,92779.0,0.010784]
[1768833427862,0.010782,92795.0,92779.0,0.010784]
[1768833428572,7.627e-05,92798.0,92778.0,0.21126989]
[1768833428763,0.09704,92797.0,92782.0,0.21126989]
[1768833428963,0.09704,92797.0,92785.0,0.11395522]
[1768833429356,0.010781,92800.0,92785.0,0.11395522]
[1768833429562,0.09704,92799.0,92785.0,0.11395522]
[1768833429762,0.09704,92798.0,92786.0,0.11395522]
[1768833429971,0.09619462,92811.0,92790.0,0.11395522]
[1768833430274,0.11370118,92824.0,92799.0,0.11395522]
[1768833430470,0.010781,92805.0,92799.0,2.2e-07]
[1768833430666,0.2098958,92804.0,92778.0,0.09704]
[1768833430862,0.010781,92806.0,92770.0,0.09731467]
[1768833430863,0.010783,92785.0,92770.0,0.09731467]
[1768833431260,0.010783,92785.0,92782.0,6.6e-07]
[1768833431471,0.010783,92785.0,92770.0,0.09731467]
[1768833431669,0.00016166,92787.0,92770.0,0.09731467]
[1768833431873,0.00016166,92787.0,92770.0,0.10809967]
[1768833432068,0.010783,92786.0,92770.0,0.09731467]
[1768833432375,0.010783,92786.0,92768.0,0.04847313]
[1768833432376,0.09704,92788.0,92775.0,0.09731467]
[1768833432558,0.09704,92790.0,92778.0,0.11395522]
[1768833432977,0.010783,92789.0,92778.0,0.11395522]
[1768833434163,0.09704,92790.0,92778.0,0.12473922]
[1768833434468,0.09704,92796.0,92783.0,0.11395522]
[1768833434876,0.09704,92796.0,92774.0,0.00016166]
[1768833435064,0.010782,92794.0,92777.0,0.12473922]
[1768833435972,0.010782,92795.0,92778.0,0.010784]
[1768833436169,0.09704,92796.0,92781.0,0.11395522]
[1768833436364,0.09704,92796.0,92784.0,0.12473822]
[1768833436564,0.09619462,92804.0,92784.0,0.11395522]
[1768833436765,0.010781,92802.0,92789.0,0.11395522]
[1768833437074,0.09704,92801.0,92790.0,0.11395522]
[1768833437271,0.11370118,92816.0,92791.0,0.11395522]
[1768833437468,0.12106391,92815.0,92791.0,0.11395522]
[1768833437770,0.02402391,92814.0,92791.0,0.11395522]
[1768833437969,0.01078,92812.0,92791.0,0.11395522]
[1768833438176,0.010781,92804.0,92794.0,0.00016166]
[1768833438373,0.010781,92803.0,92794.0,0.00016166]
[1768833438675,0.010781,92804.0,92794.0,0.00016166]
[1768833438974,0.010781,92807.0,92794.0,0.00016166]
[1768833439564,0.107821,92807.0,92794.0,0.00016166]
[1768833440067,0.010781,92805.0,92794.0,0.00016166]
[1768833441268,0.010781,92803.0,92794.0,0.00016166]
[1768833441466,0.010781,92801.0,92794.0,0.00016166]
[1768833441666,0.09704,92807.0,92786.0,0.11395522]
[1768833441870,0.010781,92803.0,92786.0,0.11395522]
[1768833442072,0.010781,92803.0,92787.0,0.010783]
[1768833442273,0.010781,92803.0,92787.0,0.12473822]
[1768833442578,0.010781,92805.0,92787.0,0.12473822]
[1768833443471,0.010781,92803.0,92787.0,0.12473822]
[1768833443676,0.09704,92807.0,92787.0,0.11395522]
[1768833443979,0.010781,92802.0,92787.0,0.11395522]
[1768833446270,0.010781,92802.0,92787.0,0.12473822]
[1768833446777,0.010781,92805.0,92787.0,0.12473822]
[1768833447079,0.107821,92807.0,92792.0,0.010782]
[1768833447279,0.02410336,92806.0,92792.0,0.12448092]
[1768833447575,0.09704,92807.0,92793.0,0.12448092]
[1768833447775,0.09704,92807.0,92793.0,0.11369892]
[1768833448267,0.09704,92807.0,92790.0,0.09908681]
[1768833448268,0.09704,92807.0,92798.0,0.010782]
[1768833448473,0.00016166,92808.0,92798.0,0.010782]
[1768833448671,0.09704,92820.0,92808.0,0.01078]
[1768833448872,0.09704,92828.0,92814.0,0.12447892]
[1768833449074,0.010778,92826.0,92814.0,0.11369892]
[1768833449269,0.010778,92826.0,92811.0,0.12447892]
[1768833449575,0.010778,92827.0,92811.0,0.12447892]
[1768833450077,0.010778,92826.0,92811.0,0.11369892]
[1768833450278,0.010779,92824.0,92807.0,0.12210794]
[1768833450463,0.010779,92823.0,92807.0,0.11369892]
[1768833451176,0.010779,92821.0,92803.0,0.09704]
[1768833451382,0.010779,92821.0,92788.0,0.010783]
[1768833451383,0.09066055,92792.0,92768.0,0.16217205]
[1768833451590,0.09066055,92786.0,92768.0,0.04847313]
[1768833451771,0.010783,92784.0,92768.0,0.04847313]
[1768833452477,0.09704,92785.0,92768.0,0.16217205]
[1768833452780,0.010782,92796.0,92778.0,0.12448292]
[1768833452973,0.09704,92795.0,92778.0,0.21278573]
[1768833453174,0.010782,92791.0,92778.0,0.21278573]
[1768833454083,0.010783,92786.0,92771.0,0.11369892]
[1768833454479,0.010783,92785.0,92772.0,0.10777662]
[1768833454785,0.010783,92785.0,92768.0,0.04847313]
[1768833455169,0.09704,92784.0,92768.0,0.04847313]
[1768833455377,0.010782,92793.0,92776.0,0.11369892]
[1768833455585,0.010782,92793.0,92777.0,0.11369892]
[1768833455784,0.010783,92790.0,92777.0,0.11369892]
[1768833455990,0.09704,92789.0,92777.0,0.11369892]
[1768833456687,0.010783,92788.0,92773.0,0.09908681]
[1768833456984,0.09704,92789.0,92772.0,0.010784]
[1768833457378,0.010783,92786.0,92769.0,0.010785]
[1768833457578,0.09066055,92788.0,92768.0,0.04847313]
[1768833457777,0.010783,92782.0,92768.0,0.04847313]
[1768833457984,0.09066055,92788.0,92768.0,0.04847313]
[1768833458378,0.010783,92782.0,92768.0,0.04847313]
[1768833458685,0.010784,92778.0,92768.0,0.04847313]
[1768833458986,0.010784,92781.0,92768.0,0.04847313]
[1768833459581,0.010783,92784.0,92768.0,0.05925813]
[1768833459771,0.1110836,92785.0,92768.0,0.04847313]
[1768833459975,0.010784,92774.0,92764.0,0.00237161]
[1768833460172,0.09704,92773.0,92764.0,0.00237161]
[1768833460585,0.09704,92773.0,92740.0,0.11383146]
[1768833460586,0.09436145,92767.0,92740.0,0.11383146]
[1768833460775,0.010786,92761.0,92743.0,0.010788]
[1768833460980,0.107826,92761.0,92743.0,0.010788]
[1768833461489,0.09694982,92810.0,92750.0,0.11383146]
[1768833461490,0.09704,92762.0,92750.0,0.11383146]
[1768833461680,0.09704,92763.0,92751.0,0.12461846]
[1768833461975,0.00016166,92764.0,92751.0,0.12461846]
[1768833462175,0.09436145,92764.0,92749.0,0.00237201]
[1768833462382,0.010786,92759.0,92749.0,0.00237201]
[1768833462584,0.09436145,92760.0,92743.0,0.107828]
[1768833462786,0.010785,92766.0,92746.0,0.010788]
[1768833462982,0.09436145,92767.0,92745.0,0.11383146]
[1768833463182,0.010785,92766.0,92749.0,0.010787]
[1768833463485,0.21622905,92773.0,92752.0,0.010787]
[1768833463691,0.010785,92771.0,92752.0,0.010787]
[1768833463889,0.00016166,92767.0,92753.0,0.010787]
[1768833464107,0.00016166,92767.0,92756.0,0.010786]
[1768833464481,0.00016166,92767.0,92753.0,0.11383146]
[1768833464689,0.01094666,92767.0,92753.0,0.11383146]
[1768833464890,0.01094666,92767.0,92752.0,0.09818102]
[1768833465090,0.1110836,92760.0,92729.0,0.00237252]
[1768833465283,0.09436145,92760.0,92736.0,0.21201248]
[1768833465487,0.09436145,92766.0,92742.0,0.11383146]
[1768833465682,0.010786,92758.0,92743.0,0.09708]
[1768833465997,0.09436145,92763.0,92744.0,0.09708]
[1768833466189,0.010786,92756.0,92745.0,0.09708]
[1768833466492,0.010786,92756.0,92739.0,0.010788]
[1768833466685,0.010786,92756.0,92745.0,0.09708]
[1768833467082,0.09436145,92757.0,92744.0,0.09708]
[1768833467286,0.010787,92754.0,92744.0,0.09708]
[1768833467488,0.10514745,92757.0,92744.0,0.09708]
[1768833468092,0.10514745,92757.0,92742.0,0.010788]
[1768833468577,0.010787,92755.0,92741.0,0.09708]
[1768833468780,0.09436145,92766.0,92741.0,0.09708]
[1768833468992,0.09436145,92763.0,92741.0,0.09708]
[1768833469288,0.1110836,92764.0,92742.0,0.010788]
[1768833469289,0.010786,92757.0,92742.0,0.010788]
[1768833469492,0.010786,92758.0,92742.0,0.010788]
[1768833469889,0.09436145,92761.0,92735.0,0.11383146]
[1768833470085,0.010786,92759.0,92743.0,0.010788]
[1768833470485,0.09436145,92761.0,92736.0,0.21091146]
[1768833470690,0.010787,92755.0,92740.0,0.010788]
[1768833471297,0.09436145,92761.0,92739.0,0.11383146]
[1768833471498,0.010786,92758.0,92743.0,0.010788]
[1768833471794,0.010786,92760.0,92741.0,0.11383146]
[1768833472695,0.010786,92760.0,92733.0,0.010789]
[1768833472696,0.09436145,92755.0,92733.0,0.010789]
[1768833472882,0.0906117,92749.0,92734.0,0.09708]
[1768833473088,0.0906117,92749.0,92735.0,0.010789]
[1768833473288,0.0906117,92749.0,92734.0,0.107869]
[1768833473784,0.010788,92746.0,92731.0,0.010789]
[1768833473984,0.1013987,92749.0,92728.0,0.11534581]
[1768833474296,0.0906117,92748.0,92731.0,0.010789]
[1768833474485,0.0906117,92753.0,92731.0,0.010789]
[1768833474687,0.00016166,92748.0,92736.0,0.010789]
[1768833474989,0.09708,92759.0,92740.0,0.11534581]
[1768833475187,0.09708,92759.0,92751.0,0.010787]
[1768833475391,0.010785,92770.0,92756.0,0.010786]
[1768833475788,0.010785,92770.0,92753.0,0.010787]
[1768833476092,0.010785,92768.0,92755.0,0.010787]
[1768833476689,0.09708,92773.0,92752.0,0.09080045]
[1768833476892,0.010785,92768.0,92753.0,0.010787]
[1768833477097,0.09708,92773.0,92752.0,0.09080045]
[1768833477595,0.010785,92770.0,92757.0,0.010786]
[1768833477996,0.09708,92773.0,92759.0,0.010786]
[1768833478195,0.010785,92772.0,92756.0,0.010786]
[1768833478583,0.010785,92768.0,92753.0,0.12613281]
[1768833478789,0.010785,92769.0,92755.0,0.010787]
[1768833478995,0.010785,92772.0,92757.0,0.010786]
[1768833479197,0.09708,92773.0,92754.0,0.11534581]
[1768833479399,0.09708,92773.0,92755.0,0.11534581]
[1768833479598,0.1013957,92781.0,92758.0,0.11534581]
[1768833479791,0.010783,92787.0,92772.0,0.010784]
[1768833480101,0.107863,92787.0,92772.0,0.010784]
[1768833480296,0.09708,92787.0,92778.0,0.010784]
[1768833480595,0.010783,92789.0,92775.0,0.010784]
[1768833481005,0.010782,92792.0,92771.0,0.09063879]
[1768833481300,0.010782,92790.0,92775.0,0.010784]
[1768833481802,0.010782,92793.0,92777.0,0.010784]
[1768833481998,0.030782,92793.0,92777.0,0.010784]
[1768833482192,0.107862,92795.0,92773.0,0.11534581]
[1768833482504,0.107862,92795.0,92774.0,0.11534581]
[1768833482890,0.107862,92795.0,92778.0,0.010784]
[1768833483196,0.107862,92795.0,92774.0,0.11534581]
[1768833483596,0.010782,92791.0,92774.0,0.11534581]
[1768833483792,0.010782,92791.0,92773.0,0.09063879]
[1768833484495,0.09708,92795.0,92776.0,0.11534581]
[1768833484697,0.010782,92794.0,92779.0,0.010784]
[1768833484892,0.09708,92795.0,92779.0,0.010784]
[1768833485293,0.010782,92793.0,92779.0,0.010784]
[1768833485801,0.010782,92793.0,92776.0,0.010784]
[1768833486001,0.010782,92793.0,92778.0,0.010784]
[1768833486200,0.09708,92795.0,92780.0,0.010784]
[1768833486404,0.09708,92795.0,92783.0,0.010783]
[1768833487501,0.0906117,92802.0,92781.0,0.11534581]
[1768833487696,0.02406201,92801.0,92787.0,0.010783]
[1768833487895,0.02406201,92800.0,92787.0,0.010783]
[1768833488091,0.010781,92802.0,92787.0,0.010783]
[1768833488296,0.02406008,92801.0,92787.0,0.005883]
[1768833488493,0.09708,92811.0,92796.0,0.010782]
[1768833488708,0.02406221,92810.0,92800.0,0.010781]
[1768833488895,0.0906117,92817.0,92802.0,0.010781]
[1768833489093,0.107859,92820.0,92797.0,0.11534581]
[1768833489094,0.02406251,92816.0,92797.0,0.11534581]
[1768833489407,0.01078,92810.0,92793.0,0.09063879]
[1768833489900,0.01078,92810.0,92794.0,0.010782]
[1768833490108,0.01078,92808.0,92793.0,0.09063879]
[1768833490507,0.01078,92811.0,92794.0,0.010782]
[1768833490697,0.0906117,92816.0,92793.0,0.09063879]
[1768833490903,0.01078,92810.0,92794.0,0.11534581]
[1768833491402,0.01078,92810.0,92794.0,0.12612781]
[1768833491902,0.0906117,92816.0,92794.0,0.11534581]
[1768833492103,0.01078,92812.0,92795.0,0.09708]
[1768833492311,0.01078,92812.0,92795.0,0.107862]
[1768833492610,0.01078,92815.0,92797.0,0.010782]
[1768833492806,0.09708,92820.0,92803.0,0.010781]
[1768833493411,0.09708,92820.0,92800.0,0.010781]
[1768833493412,0.010779,92818.0,92800.0,0.010781]
[1768833494005,0.09708,92820.0,92798.0,0.11534581]
[1768833494205,0.010779,92819.0,92802.0,0.010781]
[1768833495104,0.107859,92820.0,92802.0,0.010781]
[1768833495314,0.010779,92818.0,92802.0,0.010781]
[1768833495609,0.010779,92816.0,92802.0,0.010781]
[1768833496414,0.010779,92819.0,92802.0,0.010781]
[1768833497116,0.010779,92819.0,92804.0,0.010781]
[1768833497916,0.09708,92820.0,92798.0,0.11534581]
[1768833498418,0.01078,92816.0,92799.0,0.010781]
[1768833498717,0.01078,92816.0,92799.0,0.12612681]
[1768833498920,0.09708,92820.0,92799.0,0.12612681]
[1768833499615,0.01078,92813.0,92799.0,0.12612681]
[1768833500518,0.09708,92820.0,92799.0,0.12612681]
[1768833500819,0.09708,92820.0,92801.0,0.010781]
[1768833501004,0.010779,92818.0,92804.0,0.010781]
[1768833501820,0.09708,92820.0,92806.0,0.11534581]
[1768833502014,0.09704,92827.0,92809.0,0.11534581]
[1768833502317,0.01,92827.0,92809.0,0.01078]
[1768833502617,0.01,92827.0,92796.0,0.010782]
[1768833502618,0.1013907,92817.0,92807.0,0.09704]
[1768833502918,0.010779,92816.0,92807.0,0.09704]